bitfinex/quotes_ETHUSD_20250924
["timestamp","ask_amount","ask_price","bid_price","bid_amount"]
[1758719397408,17.26242816,4185.7,4185.6,0.002]
[1758719397783,17.49502816,4185.7,4185.6,0.002]
[1758719398316,16.67874552,4185.7,4185.6,0.002]
[1758719400170,15.97424552,4185.7,4185.6,0.002]
[1758719400476,16.68804552,4185.7,4185.6,0.002]
[1758719401311,17.48004552,4185.7,4185.6,0.002]
[1758719401610,6.30034373,4185.6,4185.5,0.002]
[1758719401811,11.9714682,4185.6,4185.5,0.002]
[1758719402408,12.2208682,4185.6,4185.5,0.002]
[1758719402614,7.0902682,4185.6,4185.5,0.002]
[1758719402834,8.97406705,4185.6,4185.5,0.002]
[1758719403015,6.50033725,4185.6,4185.5,0.002]
[1758719403197,5.90413725,4185.6,4185.5,0.5982]
[1758719403518,5.90413725,4185.6,4185.5,0.002]
[1758719403702,5.90413725,4185.6,4185.5,0.454]
[1758719403904,6.7625477,4185.6,4185.5,0.5982]
[1758719405088,5.90413725,4185.6,4185.5,0.5982]
[1758719405526,5.90413725,4185.6,4185.5,0.002]
[1758719406215,5.90413725,4185.6,4185.5,0.5982]
[1758719406943,4.37461246,4185.6,4185.5,0.5982]
[1758719407148,0.51579352,4185.6,4185.5,0.5982]
[1758719407522,3.51579352,4185.6,4185.5,0.5982]
[1758719407841,0.51579352,4185.6,4185.5,0.5982]
[1758719408040,1.16003516,4185.6,4185.5,3.29807123]
[1758719408207,0.64424164,4185.7,4185.5,3.29807123]
[1758719408407,1.16003516,4185.6,4185.5,3.29807123]
[1758719408657,0.51579352,4185.6,4185.5,0.90887042]
[1758719408852,0.51579352,4185.6,4185.5,3.29807123]
[1758719409418,0.51579352,4186.0,4185.6,2.38914373]
[1758719409647,0.51559043,4186.0,4185.7,3.00916703]
[1758719409823,0.51559043,4186.1,4185.9,2.38892842]
[1758719410013,0.51559043,4186.0,4185.9,3.02557068]
[1758719410213,0.51559043,4186.1,4185.9,6.99757068]
[1758719410413,0.1192,4186.4,4185.9,6.99757068]
[1758719410414,0.51559043,4186.0,4185.9,4.60864226]
[1758719410637,0.51559043,4186.1,4185.9,4.60864226]
[1758719410834,0.51559043,4186.1,4185.9,6.99760051]
[1758719411037,0.64424164,4186.2,4186.0,0.69976005]
[1758719411317,0.51543121,4186.3,4186.0,3.08867548]
[1758719411616,0.51543121,4186.3,4186.0,3.20787548]
[1758719411944,0.51543121,4186.3,4186.1,0.5801]
[1758719412148,0.51543121,4186.4,4186.2,0.5801]
[1758719412466,0.51643121,4186.5,4186.3,2.96884423]
[1758719412638,0.001,4186.5,4186.4,0.5801]
[1758719413272,0.001,4186.5,4186.4,4.5521]
[1758719415470,0.001,4186.5,4186.4,3.972]
[1758719415846,0.001,4186.5,4186.2,0.1192]
[1758719415847,2.38871666,4186.4,4186.2,0.1192]
[1758719416071,2.90414787,4186.4,4186.2,3.972]
[1758719416771,0.51543121,4186.4,4186.2,3.972]
[1758719416949,2.38964144,4186.5,4186.2,3.972]
[1758719417982,2.38964144,4186.5,4185.9,0.1192]
[1758719418183,2.38871909,4186.4,4186.0,3.972]
[1758719418852,2.61531909,4186.4,4186.0,3.972]
[1758719419052,2.38874543,4186.3,4186.0,3.972]
[1758719419249,0.51643121,4186.5,4186.0,3.972]
[1758719419452,2.38885836,4186.1,4186.0,3.972]
[1758719419990,2.61545836,4186.1,4186.0,3.972]
[1758719420686,2.38885836,4186.1,4186.0,3.972]
[1758719421404,2.38882063,4186.2,4186.0,3.972]
[1758719421608,2.61542063,4186.2,4186.0,3.972]
[1758719422415,2.38885836,4186.1,4186.0,3.972]
[1758719423802,3.06365836,4186.1,4186.0,3.972]
[1758719424212,3.57908957,4186.1,4186.0,3.972]
[1758719424421,0.74303121,4186.1,4186.0,3.972]
[1758719424722,2.90528957,4186.1,4186.0,3.972]
[1758719425111,3.13188957,4186.1,4186.0,3.972]
[1758719426419,2.90528957,4186.1,4186.0,3.972]
[1758719428624,2.90528957,4186.1,4185.6,0.1192]
[1758719428822,0.2266,4186.0,4185.7,3.971]
[1758719429192,2.61551946,4186.0,4185.7,3.971]
[1758719429606,2.38901696,4185.9,4185.7,3.971]
[1758719429810,2.61561696,4185.9,4185.7,3.971]
[1758719430233,2.61481696,4185.9,4185.7,3.971]
[1758719431134,2.38902957,4185.8,4185.7,3.971]
[1758719431534,2.3889936,4185.9,4185.7,3.971]
[1758719431835,3.02354686,4186.0,4185.7,3.971]
[1758719431998,2.50811565,4186.0,4185.7,3.971]
[1758719432428,2.38897648,4185.9,4185.7,3.971]
[1758719432633,0.1192,4186.0,4185.7,3.971]
[1758719432835,0.1192,4186.0,4185.8,0.4359]
[1758719433144,0.1192,4186.0,4185.8,0.5801]
[1758719433437,0.1192,4186.0,4185.9,0.5801]
[1758719434229,0.1192,4186.0,4185.9,0.4359]
[1758719434734,0.1192,4186.0,4185.7,4.1152]
[1758719434941,0.1192,4186.0,4185.7,3.971]
[1758719435235,0.63463121,4186.0,4185.7,3.971]
[1758719435406,0.63463121,4186.0,4185.8,0.4359]
[1758719435608,0.63463121,4186.0,4185.8,0.5801]
[1758719436254,0.51543121,4185.9,4185.8,0.5801]
[1758719436452,0.51543121,4185.9,4185.8,0.4359]
[1758719437227,0.51543121,4185.9,4185.8,3.971]
[1758719439222,1.15967285,4185.9,4185.8,3.971]
[1758719439422,0.51543121,4185.9,4185.8,3.971]
[1758719441259,3.35160371,4185.9,4185.8,3.971]
[1758719441461,4.22244535,4185.9,4185.8,3.971]
[1758719441753,4.23604535,4185.9,4185.8,3.971]
[1758719441970,1.84707285,4185.9,4185.8,3.971]
[1758719442149,4.23604535,4185.9,4185.8,3.971]
[1758719443228,1.84707285,4185.9,4185.8,3.971]
[1758719443562,2.38908665,4185.7,4185.6,0.002]
[1758719443762,15.33959686,4185.7,4185.6,0.002]
[1758719443922,16.03369686,4185.7,4185.6,0.002]
[1758719444128,14.74609801,4185.7,4185.6,0.002]
[1758719444331,2.50834373,4185.6,4185.5,0.002]
[1758719444528,4.94631088,4185.6,4185.5,0.002]
[1758719444830,5.64041088,4185.6,4185.5,0.002]
[1758719445248,6.92969509,4185.6,4185.5,0.002]
[1758719448151,5.64041088,4185.6,4185.5,0.002]
[1758719449167,8.64041088,4185.6,4185.5,0.002]
[1758719449731,9.43241088,4185.6,4185.5,0.002]
[1758719454499,9.52821203,4185.6,4185.5,0.002]
[1758719457360,9.52741203,4185.6,4185.5,0.002]
[1758719458908,9.52841203,4185.6,4185.5,0.002]
[1758719459273,2.38937207,4185.2,4185.1,0.022]
[1758719459504,14.75576158,4185.2,4185.1,0.022]
[1758719459688,14.98786158,4185.2,4185.1,0.022]
[1758719459889,14.75576158,4185.2,4185.1,0.022]
[1758719460407,15.45556158,4185.2,4185.1,0.022]
[1758719460920,14.75576158,4185.2,4185.1,0.022]
[1758719461085,15.61311475,4185.2,4185.1,0.022]
[1758719461294,14.75576158,4185.2,4185.1,0.022]
[1758719464023,14.98786158,4185.2,4185.1,0.022]
[1758719464728,14.75576158,4185.2,4185.1,0.022]
[1758719466595,14.98786158,4185.2,4185.1,0.022]
[1758719467592,16.74162026,4185.2,4185.1,0.022]
[1758719468614,18.03026722,4185.2,4185.1,0.022]
[1758719469030,22.00126722,4185.2,4185.1,0.022]
[1758719470132,20.71520854,4185.2,4185.1,0.022]
[1758719470431,20.71520854,4185.2,4184.6,0.002]
[1758719470432,6.18142916,4185.1,4184.6,0.002]
[1758719470593,8.5719909,4185.1,4184.6,0.002]
[1758719470798,9.2717909,4185.1,4184.6,0.002]
[1758719471233,9.36761317,4185.1,4184.6,0.002]
[1758719471605,10.80361317,4185.1,4184.6,0.002]
[1758719471810,9.36761317,4185.1,4184.6,0.002]
[1758719473340,9.36806515,4185.1,4184.6,0.002]
[1758719474238,2.38965756,4184.7,4184.6,0.002]
[1758719474442,15.34166786,4184.7,4184.6,0.002]
[1758719475607,7.19540207,4184.7,4184.6,0.4434]
[1758719475805,7.19540207,4184.7,4184.6,0.5876]
[1758719476813,7.19540207,4184.7,4184.6,0.4434]
[1758719477015,5.90554075,4184.7,4184.6,0.002]
[1758719477242,7.19540207,4184.7,4184.6,0.5876]
[1758719477447,7.19540207,4184.7,4184.6,0.4434]
[1758719477655,7.19540207,4184.7,4184.6,0.002]
[1758719479120,5.90554075,4184.7,4184.6,0.002]
[1758719480880,16.04514601,4184.7,4184.6,0.002]
[1758719481215,16.74494601,4184.7,4184.6,0.002]
[1758719482021,16.74536523,4184.7,4184.6,0.002]
[1758719483228,16.04556523,4184.7,4184.6,0.002]
[1758719483557,16.74536523,4184.7,4184.6,0.002]
[1758719483745,16.04556523,4184.7,4184.6,0.002]
[1758719484324,16.04476523,4184.7,4184.6,0.002]
[1758719484863,16.27086523,4184.7,4184.6,0.002]
[1758719486041,16.74456523,4184.7,4184.6,0.002]
[1758719488135,16.04476523,4184.7,4184.6,0.002]
[1758719492305,16.04476523,4184.7,4184.5,0.002]
[1758719492306,2.50891466,4184.6,4184.5,0.002]
[1758719492515,3.02521707,4184.6,4184.5,0.002]
[1758719492726,4.9003476,4184.6,4184.5,0.002]
[1758719493523,3.02521707,4184.6,4184.5,0.002]
[1758719493721,6.02521707,4184.6,4184.5,0.5876]
[1758719494517,3.63550241,4184.6,4184.5,0.002]
[1758719494720,3.63550241,4184.6,4184.5,0.5876]
[1758719494894,3.51630241,4184.6,4184.5,0.5876]
[1758719498424,4.16158558,4184.6,4184.5,0.5876]
[1758719499030,1.16158558,4184.6,4184.5,0.5876]
[1758719499331,0.51630241,4184.6,4184.5,2.97737177]
[1758719500129,0.51630241,4184.6,4184.5,3.09657177]
[1758719501337,0.001,4184.7,4184.5,0.7068]
[1758719501633,0.51730241,4184.7,4184.5,2.51096701]
[1758719501930,0.001,4184.7,4184.6,3.971]
[1758719502133,0.51730241,4184.7,4184.6,3.971]
[1758719502329,0.001,4184.7,4184.6,3.971]
[1758719502633,0.51730241,4184.7,4184.6,3.971]
[1758719502832,0.001,4184.7,4184.6,3.971]
[1758719503137,0.51730241,4184.7,4184.6,3.971]
[1758719503436,0.001,4184.7,4184.6,3.971]
[1758719503641,0.51730241,4184.7,4184.6,3.971]
[1758719503935,0.001,4184.7,4184.6,3.971]
[1758719504140,0.51730241,4184.7,4184.6,3.971]
[1758719504312,0.001,4184.7,4184.6,3.971]
[1758719504913,0.001,4184.7,4184.6,4.1152]
[1758719505129,0.001,4184.7,4184.6,3.971]
[1758719505939,0.001,4184.7,4184.6,4.58439714]
[1758719506113,0.001,4184.7,4184.6,5.46674627]
[1758719506438,0.001,4184.7,4184.6,5.58594627]
[1758719507438,0.001,4184.7,4184.6,7.97566093]
[1758719509452,0.001,4184.7,4184.6,1.02544627]
[1758719509655,0.001,4184.7,4184.6,3.97]
[1758719511520,0.0002,4184.7,4184.6,3.97]
[1758719514156,0.0002,4184.7,4184.6,6.94921466]
[1758719516968,0.0002,4184.7,4184.6,6.80701466]
[1758719517137,0.0002,4184.7,4184.6,7.86241466]
[1758719517346,0.0002,4184.7,4184.6,10.0305502]
[1758719518425,0.0002,4184.7,4184.6,9.9113502]
[1758719518726,0.0002,4184.7,4184.6,12.9113502]
[1758719519067,0.0002,4184.7,4184.6,13.0305502]
[1758719519231,0.0002,4184.7,4184.6,9.0605502]
[1758719519433,0.0002,4184.7,4184.6,21.2435502]
[1758719522280,0.0002,4184.7,4184.6,21.2727502]
[1758719522672,0.0002,4184.7,4184.6,9.0897502]
[1758719522861,0.0002,4184.7,4184.6,21.2707502]
[1758719523058,0.0002,4184.7,4184.6,8.2977502]
[1758719523258,0.0002,4184.7,4184.6,20.4787502]
[1758719524288,0.0002,4184.7,4184.6,21.2707502]
[1758719527468,0.0002,4184.7,4184.6,21.5022502]
[1758719529810,0.0002,4184.7,4184.6,16.9135502]
[1758719530009,0.0002,4184.7,4184.6,20.8835502]
[1758719530895,0.2307,4184.7,4184.6,20.8835502]
[1758719531194,0.2307,4184.7,4184.6,17.6520502]
[1758719531392,0.2307,4184.7,4184.6,16.8600502]
[1758719531612,0.6766,4184.7,4184.6,16.8600502]
[1758719532400,0.6945,4184.7,4184.6,2.51091466]
[1758719532606,0.6945,4184.7,4184.6,4.0922]
[1758719532807,0.6945,4184.7,4184.6,0.1212]
[1758719532973,0.6945,4184.7,4184.6,4.0922]
[1758719533172,0.6945,4184.7,4184.6,3.973]
[1758719534400,0.6945,4184.7,4184.6,6.36271466]
[1758719536809,0.6945,4184.7,4184.6,3.973]
[1758719538316,0.6945,4184.7,4184.6,6.36271466]
[1758719538521,0.0002,4184.7,4184.6,6.36271466]
[1758719538692,0.2347,4184.7,4184.6,6.36271466]
[1758719539299,0.6985,4184.7,4184.6,6.36271466]
[1758719539607,0.6985,4184.7,4184.6,3.973]
[1758719540498,0.6985,4184.7,4184.6,6.36271466]
[1758719541196,0.6985,4184.7,4184.6,3.973]
[1758719542137,0.6985,4184.7,4184.6,6.36271466]
[1758719542430,0.6985,4184.7,4184.6,3.973]
[1758719542619,0.6985,4184.7,4184.6,6.36271466]
[1758719543701,0.6985,4184.7,4184.6,3.973]
[1758719547953,0.6985,4184.7,4184.6,3.973]
[1758719550435,0.6985,4184.7,4184.6,3.972]
[1758719551720,0.6985,4184.7,4184.6,3.99589714]
[1758719552447,0.6985,4184.7,4184.6,3.972]
[1758719554177,0.2353,4184.9,4184.6,3.972]
[1758719554380,0.001,4184.7,4184.6,3.972]
[1758719554737,0.2363,4184.7,4184.6,3.972]
[1758719557860,11.2386579,4184.7,4184.6,0.002]
[1758719558060,12.42515033,4184.7,4184.6,3.972]
[1758719558474,15.42515033,4184.7,4184.6,3.972]
[1758719560239,15.42515033,4184.7,4184.6,0.002]
[1758719560433,16.71648304,4184.7,4184.6,0.002]
[1758719565755,16.71568304,4184.7,4184.6,0.002]
[1758719566373,15.42435033,4184.7,4184.6,0.002]
[1758719571584,23.57325067,4184.7,4184.6,0.002]
[1758719571769,5.38971466,4184.6,4184.5,0.002]
[1758719572095,20.4150941,4184.6,4184.5,0.002]
[1758719572284,21.1034941,4184.6,4184.5,0.002]
[1758719573200,21.1034941,4184.6,4184.1,0.022]
[1758719573201,13.53884345,4184.2,4184.1,0.022]
[1758719573365,15.33987381,4184.2,4184.1,0.022]
[1758719573564,17.4658328,4184.2,4184.1,0.022]
[1758719574200,17.46558229,4184.2,4184.1,0.022]
[1758719575095,17.58418605,4184.2,4184.1,0.022]
[1758719575509,16.29759915,4184.2,4184.1,0.022]
[1758719575795,17.08959915,4184.2,4184.1,1e-08]
[1758719581296,19.60859915,4184.2,4184.1,1e-08]
[1758719581508,17.40981112,4184.2,4184.1,1e-08]
[1758719582025,18.84581112,4184.2,4184.1,1e-08]
[1758719582812,2.39017161,4183.8,4183.7,0.002]
[1758719583000,2.39051443,4183.2,4182.4,2.183]
[1758719583206,18.02460772,4183.2,4182.4,2.183]
[1758719583428,18.69890772,4183.2,4182.4,0.192]
[1758719583623,26.41520806,4183.2,4182.4,0.192]
[1758719583824,15.33757871,4183.2,4182.6,0.5806]
[1758719584041,19.89447519,4183.2,4182.6,0.5806]
[1758719584718,7.77357485,4183.2,4182.4,0.192]
[1758719584921,19.89447519,4183.2,4182.8,0.4358]
[1758719585124,19.89447519,4183.2,4182.9,0.1448]
[1758719585717,3.51419295,4183.2,4183.1,0.6006]
[1758719586056,6.54664175,4183.2,4183.1,0.6006]
[1758719586354,5.90470738,4183.2,4183.1,0.4558]
[1758719586644,5.90470738,4183.2,4183.1,0.6006]
[1758719586797,3.51419295,4183.2,4183.1,0.6006]
[1758719587000,5.90470738,4183.2,4183.1,0.6006]
[1758719587438,5.90470738,4183.2,4183.1,0.02]
[1758719588125,8.03189963,4183.2,4183.1,0.02]
[1758719588899,8.031475,4183.2,4183.1,0.02]
[1758719589536,8.705775,4183.2,4183.1,0.02]
[1758719590036,8.273175,4183.2,4183.1,0.02]
[1758719591044,8.031475,4183.2,4183.1,0.02]
[1758719593049,8.030675,4183.2,4183.1,0.02]
[1758719594124,8.88656991,4183.2,4183.1,0.02]
[1758719594446,9.13366991,4183.2,4183.1,0.02]
[1758719594617,8.749575,4183.2,4183.1,0.02]
[1758719597424,8.23580668,4183.2,4183.1,0.02]
[1758719598242,7.51690668,4183.2,4183.1,0.02]
[1758719598452,11.48990668,4183.2,4183.1,0.02]
[1758719599213,11.73700668,4183.2,4183.1,0.02]
[1758719599716,13.5376043,4183.2,4183.1,0.02]
[1758719600228,12.25146314,4183.2,4183.1,0.02]
[1758719601215,2.3908002,4182.7,4182.6,0.002]
[1758719601417,6.76350767,4182.7,4182.6,0.002]
[1758719601949,6.76350767,4182.7,4182.6,0.5862]
[1758719602715,6.76350767,4182.7,4182.6,0.002]
[1758719603552,5.90525666,4182.7,4182.6,0.002]
[1758719603762,7.58991565,4182.7,4182.6,0.002]
[1758719604121,8.06171565,4182.7,4182.6,0.002]
[1758719604344,9.49771565,4182.7,4182.6,0.002]
[1758719604654,2.39102885,4182.3,4182.2,0.002]
[1758719604976,19.5622562,4182.3,4182.2,0.002]
[1758719605322,20.2811562,4182.3,4182.2,0.002]
[1758719609224,22.5091562,4182.3,4182.2,0.002]
[1758719611070,21.7171562,4182.3,4182.2,0.002]
[1758719611238,22.60504209,4182.3,4182.2,0.002]
[1758719612453,22.60504209,4182.3,4182.2,0.002]
[1758719614139,18.15924209,4182.3,4182.2,0.002]
[1758719614345,22.13524209,4182.3,4182.2,0.002]
[1758719617453,17.12014209,4182.3,4182.2,0.002]
[1758719617657,22.2855941,4182.3,4182.2,0.002]
[1758719617860,21.0002562,4182.3,4182.2,0.002]
[1758719618373,11.5565882,4182.3,4182.2,0.002]
[1758719618576,22.28564533,4182.3,4182.2,0.002]
[1758719619374,22.28664533,4182.3,4182.2,0.002]
[1758719619758,20.85064533,4182.3,4182.2,0.002]
[1758719620072,20.84984533,4182.3,4182.2,0.002]
[1758719620794,20.84984533,4182.3,4182.2,0.4414]
[1758719620795,5.90468531,4182.3,4182.2,0.4414]
[1758719620957,5.90468531,4182.3,4182.2,0.5862]
[1758719621159,5.90468531,4182.3,4182.2,0.4414]
[1758719621359,5.90468531,4182.3,4182.2,0.002]
[1758719623571,17.31994244,4182.3,4182.2,0.002]
[1758719623775,19.68873222,4182.3,4182.2,0.002]
[1758719624585,19.25053222,4182.3,4182.2,0.002]
[1758719625302,17.96514309,4182.3,4182.2,0.002]
[1758719625704,18.40334309,4182.3,4182.2,0.002]
[1758719626084,19.84134309,4182.3,4182.2,0.002]
[1758719627199,19.40314309,4182.3,4182.2,0.002]
[1758719627499,19.15514309,4182.3,4182.2,0.002]
[1758719627659,23.13314309,4182.3,4182.2,0.002]
[1758719628303,23.22902599,4182.3,4182.2,0.002]
[1758719628700,17.81302599,4182.3,4182.2,0.002]
[1758719628906,21.69514309,4182.3,4182.2,0.002]
[1758719630003,21.69514309,4182.3,4182.2,0.5887]
[1758719630004,5.90468531,4182.3,4182.2,0.5887]
[1758719630370,5.51028603,4182.2,4182.1,0.022]
[1758719630602,6.02474249,4182.2,4182.1,0.022]
[1758719631182,16.15461049,4182.2,4182.1,0.022]
[1758719631529,19.44641049,4182.2,4182.1,0.022]
[1758719631705,21.63007442,4182.2,4182.1,0.022]
[1758719631867,0.63365646,4182.2,4182.1,0.022]
[1758719632197,0.51445646,4182.2,4182.1,0.022]
[1758719632392,2.90554249,4182.2,4182.1,0.022]
[1758719634295,4.19369292,4182.2,4182.1,0.022]
[1758719634499,2.90554249,4182.2,4182.1,0.022]
[1758719635514,1.373935,4182.2,4182.1,0.022]
[1758719635719,3.76502103,4182.2,4182.1,0.0987]
[1758719635920,1.373935,4182.2,4182.1,0.0987]
[1758719636138,1.15911166,4182.2,4182.1,0.022]
[1758719636424,0.51445646,4182.2,4182.1,0.022]
[1758719636626,2.90554249,4182.2,4182.1,0.022]
[1758719636792,0.51445646,4182.2,4182.1,0.022]
[1758719638433,0.51445646,4182.2,4182.1,0.0987]
[1758719638614,0.51445646,4182.3,4182.1,0.0987]
[1758719638932,3.03550962,4182.4,4182.1,0.0987]
[1758719638933,0.51445646,4182.2,4182.1,0.0987]
[1758719639218,0.51445646,4182.3,4182.1,0.022]
[1758719639404,6.03550672,4182.4,4182.2,0.0767]
[1758719639606,0.51519633,4182.3,4182.1,0.022]
[1758719639809,6.03550672,4182.4,4182.1,0.022]
[1758719639810,0.51519633,4182.2,4182.1,0.022]
[1758719640016,2.39108603,4182.2,4182.1,0.022]
[1758719640323,2.90628236,4182.2,4182.1,0.022]
[1758719641184,2.39108603,4182.2,4182.1,0.022]
[1758719641732,2.90628236,4182.2,4182.1,0.022]
[1758719641906,3.02548236,4182.2,4182.1,0.022]
[1758719642857,0.63439633,4182.2,4182.1,0.022]
[1758719643661,2.39102136,4182.4,4182.1,0.0987]
[1758719643662,0.51519633,4182.4,4182.1,0.0987]
[1758719643871,0.51519633,4182.4,4182.1,0.022]
[1758719644036,0.51519633,4182.3,4182.1,0.022]
[1758719644352,2.39108603,4182.2,4182.1,0.022]
[1758719645633,2.90628236,4182.2,4182.1,0.022]
[1758719646153,6.55077678,4182.2,4182.1,0.022]
[1758719646956,6.57058236,4182.2,4182.1,0.022]
[1758719647121,9.42762656,4182.2,4182.1,0.022]
[1758719647324,8.56814802,4182.2,4182.1,0.022]
[1758719652658,16.73333547,4182.2,4182.1,0.022]
[1758719654663,16.73339221,4182.2,4182.1,0.022]
[1758719655834,18.02154264,4182.2,4182.1,0.022]
[1758719659491,18.05414264,4182.2,4182.1,0.022]
[1758719659695,22.03414264,4182.2,4182.1,0.022]
[1758719662589,21.33724264,4182.2,4182.1,0.022]
[1758719662787,17.35724264,4182.2,4182.1,0.022]
[1758719662987,21.33624264,4182.2,4182.1,0.022]
[1758719663952,21.58094264,4182.2,4182.1,0.022]
[1758719664784,22.03314264,4182.2,4182.1,0.022]
[1758719665691,21.33624264,4182.2,4182.1,0.022]
[1758719666087,20.04809221,4182.2,4182.1,0.022]
[1758719667303,16.06909221,4182.2,4182.1,0.022]
[1758719668265,5.9055391,4182.2,4182.1,0.022]
[1758719668469,0.51525307,4182.2,4182.1,0.022]
[1758719668803,0.51525307,4182.2,4182.1,0.0987]
[1758719669190,0.51625307,4182.2,4182.1,2.4898432]
[1758719669397,0.51625307,4182.2,4182.1,2.98986761]
[1758719670102,0.51625307,4182.2,4182.1,0.59872441]
[1758719670304,0.001,4182.2,4182.1,2.98986761]
[1758719673313,0.001,4182.2,4182.1,3.01377904]
[1758719673490,0.001,4182.2,4182.1,2.98986761]
[1758719674620,0.0002,4182.2,4182.1,2.98986761]
[1758719675415,0.0002,4182.2,4182.1,3.80577904]
[1758719675711,0.0002,4182.2,4182.1,3.78186761]
[1758719676684,0.0002,4182.2,4182.1,3.80577904]
[1758719677818,0.0002,4182.2,4182.1,7.76086761]
[1758719677995,0.0002,4182.2,4182.1,9.75286761]
[1758719680628,0.0002,4182.2,4182.1,9.67616761]
[1758719680990,0.0002,4182.2,4182.1,9.00336761]
[1758719690651,0.0002,4182.2,4182.1,9.08006761]
[1758719691349,0.0002,4182.2,4182.1,9.00336761]
[1758719691752,0.0002,4182.2,4182.1,9.08006761]
[1758719692851,0.0002,4182.2,4182.1,9.00336761]
[1758719700444,0.4657,4182.2,4182.1,9.00336761]
[1758719700784,0.7058,4182.2,4182.1,9.00336761]
[1758719700938,0.0002,4182.2,4182.1,9.00336761]
[1758719701475,0.0004,4182.3,4182.2,2.39108603]
[1758719701772,0.0004,4182.3,4182.2,3.53053139]
[1758719702480,0.706,4182.3,4182.2,3.53053139]
[1758719703092,0.0004,4182.3,4182.2,3.53053139]
[1758719703481,0.706,4182.3,4182.2,3.53053139]
[1758719703892,0.0004,4182.3,4182.2,3.53053139]
[1758719704989,0.2405,4182.3,4182.2,3.53053139]
[1758719705193,0.0004,4182.3,4182.2,3.53053139]
[1758719705693,0.0004,4182.3,4182.2,3.55444225]
[1758719706189,0.0004,4182.3,4182.2,3.53053139]
[1758719707092,0.706,4182.3,4182.2,3.53053139]
[1758719707857,0.2405,4182.3,4182.2,3.53053139]
[1758719708705,0.0004,4182.3,4182.2,3.53053139]
[1758719709174,0.0004,4182.3,4182.2,3.55444225]
[1758719709368,0.51565307,4182.3,4182.2,3.55444225]
[1758719709701,0.0004,4182.3,4182.2,3.55444225]
[1758719710619,0.51565307,4182.3,4182.2,3.55444225]
[1758719710769,0.0004,4182.3,4182.2,3.55444225]
[1758719711393,0.51565307,4182.3,4182.2,3.55444225]
[1758719711601,0.0004,4182.3,4182.2,3.55444225]
[1758719712365,0.51565307,4182.3,4182.2,3.55444225]
[1758719712569,0.6762,4182.3,4182.2,3.53053139]
[1758719712978,1.19145307,4182.3,4182.2,3.53053139]
[1758719713185,0.6762,4182.3,4182.2,3.53053139]
[1758719713385,0.0004,4182.3,4182.2,3.53053139]
[1758719713811,0.51565307,4182.3,4182.2,3.53053139]
[1758719714072,0.0004,4182.3,4182.2,3.55444225]
[1758719714284,0.51565307,4182.3,4182.2,3.55444225]
[1758719714515,0.0004,4182.3,4182.2,3.55444225]
[1758719714895,0.51565307,4182.3,4182.2,3.55444225]
[1758719715084,0.0004,4182.3,4182.2,3.55444225]
[1758719715780,0.0004,4182.3,4182.2,4.42314225]
[1758719715974,0.0004,4182.3,4182.2,4.54234225]
[1758719716201,0.0004,4182.3,4182.2,4.51843139]
[1758719716416,0.0004,4182.3,4182.2,5.03368446]
[1758719717082,0.0004,4182.3,4182.2,4.95698446]
[1758719717289,0.0004,4182.3,4182.2,3.64973139]
[1758719717678,0.0004,4182.3,4182.2,4.66673139]
[1758719722597,0.0004,4182.3,4182.2,4.44173139]
[1758719723619,0.0004,4182.3,4182.2,5.64073139]
[1758719723821,0.6762,4182.3,4182.2,7.22464536]
[1758719724017,0.6762,4182.3,4182.2,6.0852]
[1758719728704,0.6754,4182.3,4182.2,6.0852]
[1758719729393,0.6764,4182.3,4182.2,6.0852]
[1758719734852,3.58268192,4182.3,4182.2,4.0932]
[1758719735011,2.39108603,4182.2,4182.1,0.022]
[1758719735215,3.55069936,4182.2,4182.1,3.996]
[1758719735425,4.22649936,4182.2,4182.1,3.996]
[1758719736216,3.5821391,4182.2,4182.1,3.996]
[1758719737353,8.09389725,4182.2,4182.1,3.996]
[1758719737532,7.44953699,4182.2,4182.1,3.996]
[1758719738149,8.09249953,4182.2,4182.1,3.996]
[1758719738752,7.44953699,4182.2,4182.1,3.996]
[1758719739367,8.09233885,4182.2,4182.1,3.996]
[1758719740565,5.70125282,4182.2,4182.1,3.996]
[1758719740754,4.19105307,4182.2,4182.1,3.996]
[1758719740954,6.06688603,4182.2,4182.1,3.996]
[1758719741250,6.5821391,4182.2,4182.1,3.996]
[1758719747467,3.51525307,4182.2,4182.1,3.996]
[1758719747670,0.001,4182.3,4182.1,3.996]
[1758719747843,0.001,4182.3,4182.2,2.82230689]
[1758719748258,0.001,4182.3,4182.2,2.89940689]
[1758719749292,0.001,4182.3,4182.2,3.66749603]
[1758719752273,0.001,4182.3,4182.2,3.59039603]
[1758719752475,0.001,4182.3,4182.2,9.55639603]
[1758719755601,0.0002,4182.3,4182.2,9.55639603]
[1758719757102,0.0002,4182.3,4182.2,2.79839603]
[1758719757282,0.0002,4182.3,4182.2,8.76439603]
[1758719758074,0.0002,4182.3,4182.2,9.63349603]
[1758719759197,0.0002,4182.3,4182.2,9.75269603]
[1758719761090,0.0002,4182.3,4182.2,9.67559603]
[1758719761894,0.0002,4182.3,4182.2,9.75269603]
[1758719764194,0.0002,4182.3,4182.2,9.67559603]
[1758719766519,0.2368,4182.3,4182.2,2.91759603]
[1758719766722,0.6855,4182.3,4182.2,2.51028603]
[1758719766926,0.6855,4182.3,4182.2,8.47728603]
[1758719769060,0.6855,4182.3,4182.2,6.0862]
[1758719773943,0.6855,4182.3,4182.2,8.47728603]
[1758719774146,0.6855,4182.3,4182.2,6.0862]
[1758719774442,0.6855,4182.3,4182.2,8.47728603]
[1758719775010,0.0002,4182.3,4182.2,8.47728603]
[1758719775442,0.0002,4182.3,4182.2,6.0862]
[1758719775742,0.6925,4182.3,4182.2,6.0862]
[1758719776246,0.6925,4182.3,4182.2,8.47728603]